bitfinex-derivatives/quotes_BTCF0:USTF0_20210706
["timestamp","ask_amount","ask_price","bid_price","bid_amount"]
[1625590244475,1.34685874,33852.0,33851.0,6.75838969]
[1625590245492,0.82705289,33852.0,33851.0,6.75838969]
[1625590245852,1.34561001,33852.0,33851.0,6.75838969]
[1625590246093,0.82705289,33852.0,33851.0,6.75838969]
[1625590247001,0.48115088,33852.0,33851.0,6.75838969]
[1625590247602,0.8646912,33854.0,33851.0,6.75838969]
[1625590247729,0.8646912,33854.0,33853.0,6.43255434]
[1625590247730,0.34593439,33854.0,33853.0,6.43255434]
[1625590248202,0.34593439,33854.0,33853.0,6.43684397]
[1625590248504,0.51880561,33855.0,33853.0,6.43684397]
[1625590248506,0.34649745,33855.0,33853.0,6.43684397]
[1625590248805,0.34649745,33855.0,33854.0,6.43257917]
[1625590249047,0.34649745,33855.0,33854.0,6.43686877]
[1625590249285,0.86616737,33856.0,33854.0,6.43686877]
[1625590249406,0.86616737,33856.0,33855.0,0.24057544]
[1625590249526,0.86616737,33856.0,33855.0,6.67595288]
[1625590249707,0.51965959,33856.0,33855.0,5.11163421]
[1625590249948,1.21231467,33856.0,33855.0,5.11163421]
[1625590250187,2.25083007,33856.0,33855.0,5.11163421]
[1625590251513,2.25083007,33856.0,33855.0,4.87105877]
[1625590256498,1.21231467,33856.0,33855.0,4.87105877]
[1625590256857,2.24887929,33856.0,33855.0,4.87105877]
[1625590258539,2.24887929,33856.0,33855.0,4.95945877]
[1625590258659,2.24887929,33856.0,33855.0,4.87105877]
[1625590259261,1.21231467,33856.0,33855.0,4.87105877]
[1625590259921,1.10001467,33856.0,33855.0,4.87105877]
[1625590260042,0.30725959,33856.0,33855.0,4.87105877]
[1625590260163,0.26665959,33856.0,33855.0,4.87105877]
[1625590260286,0.34575248,33856.0,33855.0,4.87105877]
[1625590260464,0.34575248,33856.0,33855.0,6.43477144]
[1625590260704,0.58626515,33857.0,33855.0,6.43477144]
[1625590260945,0.58626515,33857.0,33856.0,4.34354822]
[1625590261064,0.58626515,33857.0,33856.0,4.56724822]
[1625590261184,0.58626515,33857.0,33856.0,4.5715379]
[1625590261546,0.58626515,33857.0,33856.0,4.81211334]
[1625590262148,0.93131431,33857.0,33856.0,4.81211334]
[1625590262928,0.24057544,33857.0,33856.0,4.81211334]
[1625590263467,0.9307181,33857.0,33856.0,4.81211334]
[1625590263767,0.24057544,33857.0,33856.0,4.81211334]
[1625590264068,0.93040527,33857.0,33856.0,4.81211334]
[1625590266293,0.24057544,33857.0,33856.0,4.81211334]
[1625590266777,0.93020599,33857.0,33856.0,4.81211334]
[1625590267019,3.16939396,33857.0,33856.0,1.74170897]
[1625590267136,8.06519396,33857.0,33856.0,1.74170897]
[1625590267257,9.44274862,33857.0,33856.0,0.6992574]
[1625590267498,8.3057694,33857.0,33856.0,1.74163628]
[1625590267860,8.3057694,33857.0,33856.0,0.6992574]
[1625590267861,9.68315957,33857.0,33856.0,0.6992574]
[1625590268041,9.68315957,33857.0,33856.0,0.00428968]
[1625590268579,9.68315957,33857.0,33856.0,0.35181252]
[1625590270203,9.68315957,33857.0,33856.0,0.69932377]
[1625590271225,4.78735957,33857.0,33856.0,0.69932377]
[1625590271703,4.78735957,33857.0,33856.0,1.74188285]
[1625590271944,3.4099694,33857.0,33856.0,1.74188285]
[1625590273264,3.4099694,33857.0,33856.0,2.09241285]
[1625590273385,2.20426605,33857.0,33856.0,4.69872933]
[1625590273625,2.20426605,33857.0,33856.0,4.93930477]
[1625590275249,1.17078143,33857.0,33856.0,4.93930477]
[1625590275488,0.48115088,33857.0,33856.0,6.50272891]
[1625590275968,0.24057544,33857.0,33856.0,6.50272891]
[1625590276869,0.34599517,33860.0,33856.0,6.50272891]
[1625590277110,0.34599517,33860.0,33857.0,0.0882]
[1625590277231,0.34599517,33860.0,33857.0,0.00428891]
[1625590277351,0.34590181,33861.0,33859.0,4.34146121]
[1625590277592,0.34590181,33861.0,33860.0,4.82260191]
[1625590277713,0.34590181,33861.0,33860.0,4.82689078]
[1625590278554,0.34578142,33862.0,33860.0,4.82689078]
[1625590278794,0.34578142,33862.0,33861.0,4.34023871]
[1625590279033,0.34578142,33862.0,33861.0,4.3445274]
[1625590279814,0.34589265,33863.0,33861.0,4.3445274]
[1625590280053,0.34589265,33863.0,33862.0,4.34449908]
[1625590280778,0.69161244,33864.0,33862.0,4.34449908]
[1625590280779,0.3458628,33864.0,33862.0,4.34449908]
[1625590281016,0.3458628,33864.0,33863.0,4.33907207]
[1625590281136,0.3458628,33864.0,33863.0,4.56974057]
[1625590281257,0.69155275,33865.0,33863.0,4.56974057]
[1625590281496,0.69155275,33865.0,33864.0,2.95060837]
[1625590281616,0.69155275,33865.0,33864.0,3.19118381]
[1625590281738,0.69155275,33865.0,33864.0,3.19547233]
[1625590281983,0.69155275,33865.0,33864.0,8.94749114]
[1625590283240,0.34644505,33867.0,33864.0,8.94749114]
[1625590283481,0.34662863,33868.0,33866.0,4.33806432]
[1625590283722,0.34662863,33868.0,33867.0,4.57859647]
[1625590283902,0.34662863,33868.0,33867.0,4.58288436]
[1625590284384,0.34720554,33869.0,33867.0,4.58288436]
[1625590284744,0.34698164,33870.0,33868.0,4.33721503]
[1625590284984,0.34698164,33870.0,33869.0,4.33395475]
[1625590285226,0.34698164,33870.0,33869.0,4.33824255]
[1625590285405,0.34698164,33870.0,33869.0,2.95137703]
[1625590286368,0.69378987,33871.0,33869.0,2.95137703]
[1625590286610,0.34679801,33870.0,33869.0,1.21779513]
[1625590286850,0.34679801,33870.0,33869.0,2.94671848]
[1625590287091,0.34679801,33870.0,33869.0,2.95100507]
[1625590288651,0.34661458,33871.0,33869.0,2.95100507]
[1625590289011,0.69305595,33872.0,33870.0,1.73242603]
[1625590289134,0.69305595,33872.0,33870.0,1.98036603]
[1625590289253,0.69305595,33872.0,33871.0,0.69297249]
[1625590289855,0.69305595,33872.0,33871.0,0.93354793]
[1625590291719,0.69305595,33872.0,33871.0,6.22284793]
[1625590291838,0.69288016,33873.0,33871.0,6.22284793]
[1625590292318,0.69288016,33873.0,33872.0,0.34613701]
[1625590292920,0.69288016,33873.0,33872.0,0.51915667]
[1625590294606,0.69288016,33873.0,33872.0,0.17301966]
[1625590295865,0.69288016,33873.0,33872.0,0.51904198]
[1625590296109,0.69244851,33874.0,33872.0,0.34602232]
[1625590296345,0.69244851,33874.0,33873.0,0.17298486]
[1625590296587,0.34619572,33874.0,33873.0,0.51875895]
[1625590297009,0.69222059,33874.0,33873.0,0.17298486]
[1625590297249,0.69222059,33874.0,33872.0,0.51862895]
[1625590297549,0.51938247,33873.0,33872.0,0.51862895]
[1625590298150,0.51938247,33873.0,33872.0,0.34572391]
[1625590298270,0.34619731,33873.0,33872.0,0.34572391]
[1625590298392,0.34619731,33873.0,33871.0,6.22186858]
[1625590298633,0.51940329,33873.0,33872.0,0.3457994]
[1625590299715,0.69230198,33873.0,33872.0,0.51873888]
[1625590299835,0.69230198,33873.0,33872.0,0.80341888]
[1625590299955,0.69230198,33873.0,33872.0,0.45761948]
[1625590300376,0.69230198,33873.0,33872.0,0.80371038]
[1625590301219,0.69230198,33873.0,33872.0,0.80799708]
[1625590302118,0.69230198,33873.0,33872.0,0.80371038]
[1625590302297,0.69230198,33873.0,33872.0,0.63505755]
[1625590302537,0.69230198,33873.0,33872.0,0.80815449]
[1625590302837,0.69230198,33873.0,33872.0,0.63505755]
[1625590304163,0.69230198,33873.0,33872.0,0.35037755]
[1625590304285,0.69230198,33873.0,33872.0,0.52349232]
[1625590304524,1.73019348,33873.0,33872.0,0.00428665]
[1625590305305,2.94050516,33873.0,33872.0,0.00428665]
[1625590305545,1.73019348,33873.0,33872.0,0.00428665]
[1625590306267,1.97076892,33873.0,33872.0,0.00428665]
[1625590306508,1.97076892,33873.0,33872.0,0.26818665]
[1625590306747,1.97076892,33873.0,33872.0,0.44131195]
[1625590306987,0.93287742,33873.0,33872.0,0.78756031]
[1625590307348,1.97101287,33873.0,33872.0,0.44131195]
[1625590307708,1.97101287,33873.0,33872.0,0.00428665]
[1625590310415,1.9854285,33873.0,33872.0,0.00428665]
[1625590311499,1.97101287,33873.0,33872.0,0.30355665]
[1625590311979,1.97101287,33873.0,33872.0,0.47668644]
[1625590312341,1.98542816,33873.0,33872.0,0.47668644]
[1625590313721,1.98542816,33873.0,33872.0,0.30355665]
[1625590314204,3.1964671,33873.0,33872.0,0.30355665]
[1625590314321,3.1964671,33873.0,33872.0,0.00428665]
[1625590324058,4.58147337,33873.0,33872.0,0.00428665]
[1625590325140,6.13771034,33873.0,33871.0,0.00429174]
[1625590325321,6.13771034,33873.0,33864.0,0.69329593]
[1625590325322,5.87790481,33872.0,33864.0,0.52000722]
[1625590325440,4.7792,33865.0,33864.0,0.52000722]
[1625590325561,7.98305429,33865.0,33864.0,0.52000722]
[1625590325802,9.36426243,33865.0,33860.0,0.52005496]
[1625590325921,9.37867876,33865.0,33864.0,0.00429269]
[1625590326042,10.93216686,33865.0,33864.0,0.00429269]
[1625590326164,10.91775053,33865.0,33861.0,0.00429272]
[1625590326403,4.31497263,33862.0,33859.0,0.41393511]
[1625590326524,5.03669895,33862.0,33859.0,0.41393511]
[1625590326642,5.03669895,33862.0,33859.0,0.24057544]
[1625590326643,2.93363593,33860.0,33859.0,0.24057544]
[1625590326883,2.93363593,33860.0,33859.0,0.24486758]
[1625590327242,2.94805559,33860.0,33859.0,0.24486758]
[1625590327364,4.32795994,33860.0,33859.0,0.24486758]
[1625590327482,4.31354028,33860.0,33859.0,0.24057544]
[1625590327603,2.93363593,33860.0,33859.0,0.24057544]
[1625590328328,4.31385762,33860.0,33859.0,0.24057544]
[1625590329830,2.93363593,33860.0,33859.0,0.24057544]
[1625590330248,4.31467564,33860.0,33859.0,0.24057544]
[1625590332292,4.31467564,33860.0,33857.0,0.52014956]
[1625590332411,2.93414217,33858.0,33857.0,0.17340301]
[1625590332531,3.17471761,33858.0,33857.0,0.17340301]
[1625590332652,3.17471761,33858.0,33857.0,0.52019903]
[1625590333975,1.96658203,33858.0,33857.0,0.69356274]
[1625590334454,1.96658203,33858.0,33856.0,1.04034411]
[1625590334455,1.96658203,33858.0,33856.0,0.6935792]
[1625590334575,4.0222,33857.0,33856.0,0.6935792]
[1625590334698,5.74894971,33857.0,33856.0,0.6935792]
[1625590335415,5.74894971,33857.0,33856.0,0.34675988]
[1625590335657,6.95707075,33857.0,33856.0,0.52014207]
[1625590335957,5.74894971,33857.0,33856.0,0.52014207]
[1625590336502,5.98952515,33857.0,33856.0,0.52014207]
[1625590337222,5.98952515,33857.0,33856.0,0.34675988]
[1625590337460,5.98952515,33857.0,33856.0,0.52007586]
[1625590338121,5.98952515,33857.0,33855.0,0.69325987]
[1625590338360,4.26277544,33857.0,33856.0,0.34655753]
[1625590338841,4.95263716,33857.0,33856.0,0.34655753]
[1625590339320,4.95263716,33857.0,33856.0,0.51982027]
[1625590339321,5.98724952,33857.0,33856.0,0.51982027]
[1625590340409,1.96504952,33857.0,33856.0,0.51982027]
[1625590340529,0.93043716,33857.0,33856.0,0.51982027]
[1625590340766,0.93043716,33857.0,33856.0,0.34655753]
[1625590341013,0.75811818,33857.0,33856.0,0.69281461]
[1625590341247,0.41314715,33857.0,33856.0,1.73202279]
[1625590341731,0.24057544,33857.0,33856.0,1.73202279]
[1625590342508,0.24057544,33857.0,33856.0,2.94853066]
[1625590342627,0.51793482,33860.0,33856.0,3.42968154]
[1625590342748,0.17278827,33861.0,33856.0,4.81497019]
[1625590342930,0.75878912,33862.0,33860.0,1.73160868]
[1625590343048,0.75878912,33862.0,33860.0,2.07106868]
[1625590343167,0.75878912,33862.0,33861.0,0.692642]
[1625590343890,0.75878912,33862.0,33861.0,1.73164908]
[1625590344009,0.24057544,33862.0,33861.0,1.73164908]
[1625590344131,0.24057544,33862.0,33861.0,1.73594051]
[1625590344610,0.5860216,33862.0,33861.0,0.93321744]
[1625590345874,0.24057544,33862.0,33860.0,1.0322153]
[1625590346113,0.51815116,33861.0,33860.0,1.0322153]
[1625590346473,0.51815116,33861.0,33860.0,1.0365045]
[1625590346954,0.93119341,33862.0,33860.0,1.0365045]
[1625590347196,0.51815015,33861.0,33860.0,1.0365045]
[1625590347377,0.3453759,33861.0,33860.0,1.0365045]
[1625590348396,0.51814838,33861.0,33860.0,1.0365045]
[1625590348636,0.3453759,33861.0,33860.0,1.0365045]
[1625590349360,0.93119341,33862.0,33860.0,1.0365045]
[1625590349478,0.93119341,33862.0,33860.0,0.6970445]
[1625590349599,0.93119341,33862.0,33861.0,0.51961809]
[1625590349841,1.96676622,33862.0,33861.0,0.17749559]
[1625590350381,2.48455984,33862.0,33861.0,0.00428956]
[1625590350622,3.69224695,33862.0,33861.0,0.00428956]
[1625590350861,5.07173006,33862.0,33861.0,0.00428956]
[1625590350980,5.30685685,33862.0,33860.0,0.00428999]
[1625590351101,4.82589505,33861.0,33860.0,0.00428999]
[1625590351220,4.82589505,33861.0,33857.0,0.24057544]
[1625590351462,4.8403222,33861.0,33857.0,0.24057544]
[1625590351703,3.44777626,33858.0,33857.0,0.24057544]
[1625590352062,3.44777626,33858.0,33857.0,0.24486573]
[1625590352725,3.6883517,33858.0,33857.0,0.24486573]
[1625590353444,2.99876198,33858.0,33857.0,0.24486573]
[1625590353565,5.06522758,33858.0,33857.0,0.24057544]
[1625590353805,3.68764124,33858.0,33857.0,0.24057544]
[1625590353925,3.68764124,33858.0,33857.0,0.24486583]
[1625590356027,3.70206903,33858.0,33857.0,0.00429039]
[1625590356270,5.07935558,33858.0,33857.0,0.00429039]
[1625590356571,5.07935558,33858.0,33854.0,0.00429053]
[1625590356811,2.71857906,33855.0,33854.0,0.00429053]
[1625590356930,2.95960906,33855.0,33850.0,0.69278892]
[1625590357053,8.18860906,33855.0,33851.0,0.34639755]
[1625590357416,1.20349265,33853.0,33852.0,0.00428608]
[1625590357651,1.20349265,33853.0,33845.0,1.03930324]
[1625590357652,2.23484143,33853.0,33845.0,1.03930324]
[1625590357891,2.23484143,33853.0,33843.0,1.21252045]
[1625590357892,1.0306451,33848.0,33842.0,1.03940121]
[1625590358011,1.3599051,33848.0,33842.0,1.03940121]
[1625590358131,1.3599051,33848.0,33843.0,0.00428666]
[1625590358254,1.03056399,33847.0,33843.0,0.00428666]
[1625590358434,1.03055313,33846.0,33843.0,0.00428666]
[1625590358554,4.5364,33844.0,33843.0,0.00428666]
[1625590358675,4.5364,33844.0,33842.0,0.00428754]
[1625590358975,4.5364,33844.0,33842.0,1.04321253]
[1625590358976,0.72172632,33843.0,33842.0,1.04321253]
[1625590359577,0.72172632,33843.0,33842.0,0.00428754]
[1625590361624,0.72172632,33843.0,33841.0,1.04284058]
[1625590361865,0.72172632,33843.0,33842.0,0.0042866]
[1625590362949,0.72172632,33843.0,33842.0,1.0425353]
[1625590363190,0.72172632,33843.0,33842.0,0.0042866]
[1625590364702,0.72172632,33843.0,33837.0,1.0381424]
[1625590364934,0.48115088,33838.0,33834.0,1.03817938]
[1625590365055,0.71168088,33838.0,33834.0,1.03817938]
[1625590365595,0.71168088,33838.0,33832.0,1.21120927]
[1625590365715,0.71168088,33838.0,33831.0,1.03832457]
[1625590365955,1.02614806,33837.0,33830.0,0.95]
[1625590366195,1.02589039,33836.0,33830.0,0.95]
[1625590366316,3.8408,33830.0,33827.0,1.03840309]
[1625590366436,4.15616,33830.0,33827.0,1.03840309]
[1625590366796,5.18026498,33830.0,33822.0,1.03859539]
[1625590367037,1.23108176,33823.0,33821.0,1.03862749]
[1625590367277,1.23108176,33823.0,33819.0,1.03680994]
[1625590367881,4.9046,33820.0,33819.0,1.03680994]
[1625590367997,4.9046,33820.0,33817.0,1.03691583]
[1625590368477,4.9046,33820.0,33814.0,1.38255444]
[1625590368478,4.9046,33820.0,33814.0,1.03709031]
[1625590368777,4.9046,33820.0,33812.0,1.03536062]
[1625590369018,0.48115088,33813.0,33812.0,1.03536062]
[1625590369139,0.82358088,33813.0,33812.0,1.03536062]
[1625590369378,0.82358088,33813.0,33812.0,1.03965191]
[1625590369499,0.82358088,33813.0,33812.0,2.24753122]
[1625590369741,0.82358088,33813.0,33812.0,2.24323993]
[1625590370461,0.48115088,33813.0,33812.0,1.03536062]
[1625590370881,0.48115088,33813.0,33812.0,2.24188414]
[1625590371841,0.48115088,33813.0,33812.0,1.03536062]
[1625590373282,0.48115088,33813.0,33809.0,1.27400407]
[1625590373523,0.48115088,33813.0,33810.0,1.03342248]
[1625590374187,0.48115088,33813.0,33811.0,1.03342435]
[1625590374487,0.48115088,33813.0,33812.0,1.03338022]
[1625590374789,0.48115088,33813.0,33811.0,1.03270358]
[1625590375329,0.48115088,33813.0,33812.0,1.03269723]
[1625590377794,0.48115088,33813.0,33811.0,1.03228283]
[1625590380982,0.48115088,33813.0,33810.0,1.48336537]
[1625590381641,0.48115088,33813.0,33811.0,1.03163493]
[1625590382183,0.48115088,33813.0,33810.0,1.48336786]
[1625590382605,0.48115088,33813.0,33810.0,1.27220786]
[1625590382725,0.48115088,33813.0,33811.0,1.03188932]
[1625590383326,0.48115088,33813.0,33810.0,1.27247978]
[1625590383570,0.70403088,33813.0,33810.0,0.24057544]
[1625590384350,0.70403088,33813.0,33805.0,1.03152455]
[1625590384469,0.70403088,33813.0,33803.0,1.03188674]
[1625590384829,0.70403088,33813.0,33802.0,1.27252282]
[1625590384949,0.70403088,33813.0,33802.0,1.03194738]
[1625590385070,0.70403088,33813.0,33800.0,1.03196716]
[1625590385190,3.6521,33801.0,33800.0,1.03196716]
[1625590385309,3.6521,33801.0,33799.0,0.2929]
[1625590385310,4.62978632,33801.0,33799.0,0.2929]
[1625590385431,4.62978632,33801.0,33795.0,1.03211038]
[1625590385550,4.62978632,33801.0,33794.0,1.03218938]
[1625590385911,4.62978632,33801.0,33792.0,1.03221634]
[1625590386153,4.62978632,33801.0,33791.0,1.03230406]
[1625590386392,4.62978632,33801.0,33790.0,1.03099082]
[1625590387111,4.62978632,33801.0,33789.0,1.03089885]
[1625590387230,0.48115088,33790.0,33789.0,1.03089885]
[1625590387471,0.78313088,33790.0,33789.0,1.03518371]
[1625590387770,0.78313088,33790.0,33789.0,1.03089885]
[1625590387892,0.78313088,33790.0,33788.0,1.03096156]
[1625590388131,0.78313088,33790.0,33787.0,1.27035241]
[1625590389455,0.78313088,33790.0,33788.0,0.00428515]
[1625590389936,0.78313088,33790.0,33787.0,0.24057544]
[1625590391501,0.78313088,33790.0,33788.0,0.00428292]
[1625590392882,0.78313088,33790.0,33787.0,0.24057544]
[1625590393362,0.78313088,33790.0,33788.0,0.00428323]
[1625590394148,0.48115088,33790.0,33788.0,0.00428323]
[1625590396011,0.48115088,33790.0,33788.0,0.27656323]
[1625590396372,0.48115088,33790.0,33789.0,0.00428307]
[1625590397334,0.24057544,33790.0,33789.0,0.24485851]
[1625590399379,0.48115088,33790.0,33789.0,0.24485851]
[1625590399740,0.24057544,33797.0,33789.0,0.24485851]
[1625590399860,0.24057544,33797.0,33789.0,0.51627851]
[1625590400161,0.24057544,33797.0,33790.0,0.00428319]
[1625590401303,0.24057544,33797.0,33796.0,0.24057544]
[1625590401423,0.24057544,33797.0,33796.0,0.58197544]
[1625590401663,0.24057544,33797.0,33796.0,0.58625868]
[1625590402987,0.24057544,33801.0,33796.0,0.58625868]
[1625590403347,0.24057544,33801.0,33800.0,0.24057544]
[1625590403707,0.24057544,33801.0,33800.0,0.24485787]
[1625590405513,0.24057544,33801.0,33800.0,3.88215787]
[1625590408879,0.24057544,33801.0,33800.0,3.97065787]
[1625590409000,0.24057544,33801.0,33800.0,3.88215787]
[1625590409242,0.24057544,33801.0,33800.0,3.87787544]
[1625590409479,0.24057544,33801.0,33800.0,3.88215579]
[1625590412187,0.24057544,33813.0,33800.0,3.89088154]
[1625590412428,0.24057544,33813.0,33801.0,0.01300517]
[1625590412555,0.24057544,33813.0,33801.0,1.0437551]
[1625590412790,0.24057544,33813.0,33802.0,1.03071926]
[1625590413031,0.24057544,33813.0,33802.0,1.0437234]
[1625590413151,0.24057544,33813.0,33803.0,1.03071179]
[1625590413271,0.24057544,33813.0,33803.0,1.37344641]
[1625590413391,0.24057544,33813.0,33812.0,0.48115088]
[1625590413631,0.24057544,33813.0,33812.0,0.77807088]
[1625590413870,0.24057544,33813.0,33812.0,0.78235031]
[1625590419467,0.24057544,33813.0,33812.0,0.48543031]
[1625590419585,0.24057544,33813.0,33812.0,0.24485487]
[1625590419704,0.24057544,33813.0,33812.0,0.24057544]
[1625590419942,0.24057544,33813.0,33804.0,0.68959638]
[1625590420064,0.24057544,33813.0,33802.0,0.68962188]
[1625590420302,0.24057544,33813.0,33805.0,0.00427962]
[1625590420542,0.24057544,33813.0,33803.0,0.68976001]
[1625590420543,0.24057544,33813.0,33804.0,0.6904073]
[1625590420783,0.24057544,33813.0,33806.0,0.00427955]
[1625590421022,0.24057544,33813.0,33805.0,0.00427955]
[1625590421263,0.24057544,33813.0,33804.0,0.00427955]
[1625590421502,0.24057544,33810.0,33805.0,0.24057544]
[1625590421622,0.50992544,33810.0,33805.0,0.24057544]
[1625590421864,0.50992544,33810.0,33806.0,0.00427955]
[1625590422704,0.50992544,33810.0,33806.0,0.69565324]
[1625590423185,0.50992544,33810.0,33807.0,0.00427952]
[1625590423545,0.24057544,33808.0,33807.0,0.00427952]
[1625590424392,0.24057544,33808.0,33807.0,1.73553845]
[1625590426076,0.24057544,33810.0,33807.0,2.94752377]
[1625590426200,0.24057544,33810.0,33807.0,3.26737377]
[1625590426316,0.24057544,33813.0,33807.0,3.26737377]
[1625590426445,0.24057544,33813.0,33809.0,2.94323834]
[1625590426682,0.24057544,33813.0,33808.0,0.00427873]
[1625590426684,0.24057544,33813.0,33812.0,1.73128668]
[1625590427041,0.24057544,33813.0,33812.0,1.73556392]
[1625590427217,0.24057544,33813.0,33812.0,2.94767985]
[1625590427458,0.24057544,33813.0,33812.0,3.42883073]
[1625590427700,0.24057544,33813.0,33812.0,4.81404523]
[1625590428059,0.24057544,33818.0,33812.0,4.81404523]
[1625590428179,0.24057544,33821.0,33812.0,4.81404523]
[1625590428360,0.24057544,33821.0,33813.0,0.00427688]
[1625590428481,0.24057544,33821.0,33816.0,0.69258798]
[1625590428599,0.24057544,33821.0,33816.0,0.97906798]
[1625590428899,0.24057544,33821.0,33817.0,0.00427712]
[1625590429503,0.24057544,33821.0,33820.0,0.24057544]
[1625590430885,0.91367321,33821.0,33820.0,0.24057544]
[1625590431130,1.9230433,33821.0,33820.0,0.24057544]
[1625590431491,1.9230433,33821.0,33816.0,0.24057544]
[1625590432088,0.91367321,33821.0,33816.0,0.24057544]
[1625590432209,0.91367321,33821.0,33817.0,0.0042773]
[1625590432328,0.24057544,33821.0,33817.0,0.2763773]
[1625590432748,0.24057544,33821.0,33818.0,0.00427723]
[1625590433469,0.24057544,33819.0,33818.0,0.00427723]
[1625590434552,0.24057544,33819.0,33817.0,0.0042774]
[1625590434917,0.91349045,33819.0,33817.0,0.0042774]
[1625590435159,0.67285143,33818.0,33816.0,0.24057544]
[1625590437022,0.67317382,33817.0,33816.0,0.24057544]
[1625590437261,0.91415206,33819.0,33817.0,0.00427772]
[1625590438282,0.24057544,33819.0,33817.0,0.00427772]
[1625590439309,0.6740011,33821.0,33817.0,0.00427772]
[1625590439310,1.01091743,33822.0,33817.0,0.00427772]
[1625590439311,1.01091743,33822.0,33817.0,0.69750256]
[1625590439313,0.67432248,33822.0,33817.0,0.69750256]
[1625590439545,0.67432248,33822.0,33821.0,0.48115088]
[1625590439664,0.67429509,33823.0,33821.0,0.72801088]
[1625590440029,0.67429509,33823.0,33822.0,0.00427566]
[1625590440565,0.91552234,33825.0,33822.0,0.00427566]
[1625590440803,0.6749853,33824.0,33822.0,0.00427566]
[1625590441526,1.25296903,33825.0,33822.0,0.00427566]
[1625590441528,0.91599197,33825.0,33822.0,0.00427566]
[1625590441765,0.24057544,33825.0,33822.0,0.00427566]
[1625590441886,0.24057544,33825.0,33822.0,4.79927566]
[1625590442125,0.24057544,33825.0,33823.0,0.00427495]
[1625590443387,0.24057544,33825.0,33823.0,0.69731782]
[1625590443567,0.24057544,33825.0,33824.0,0.69303868]
[1625590443747,0.24057544,33825.0,33824.0,0.69731327]
[1625590444229,0.91819406,33829.0,33824.0,0.69731327]
[1625590444468,1.01634325,33830.0,33825.0,0.69305043]
[1625590444469,0.67822471,33830.0,33825.0,0.69305043]
[1625590444590,0.67822471,33830.0,33825.0,0.69732483]
[1625590444716,0.6784975,33832.0,33826.0,0.69260563]
[1625590444830,0.6784975,33832.0,33826.0,0.69687994]
[1625590444949,1.01766146,33833.0,33827.0,0.69259449]
[1625590444950,0.67885828,33833.0,33827.0,0.69259449]
[1625590445072,0.67885828,33833.0,33827.0,0.69686871]
[1625590445431,0.67885828,33833.0,33828.0,0.00427402]
[1625590445552,1.42845018,33836.0,33828.0,0.00427402]
[1625590445553,0.67958997,33835.0,33832.0,0.48115088]
[1625590445793,0.67995325,33834.0,33832.0,0.48115088]
[1625590445913,0.67995325,33834.0,33833.0,0.00427399]
[1625590446153,0.67995325,33834.0,33832.0,0.48115088]
[1625590446273,0.68050724,33835.0,33832.0,0.48115088]
[1625590446514,0.68075292,33834.0,33832.0,0.48115088]
[1625590446755,1.02104431,33835.0,33832.0,0.48115088]
[1625590446756,0.68094888,33835.0,33832.0,0.48115088]
[1625590446999,0.68094888,33835.0,33834.0,4.2421]
[1625590447238,1.19174114,33835.0,33834.0,4.2421]
[1625590447717,0.51079226,33835.0,33834.0,4.2421]
[1625590447957,1.19168489,33835.0,33834.0,4.2421]
[1625590448198,0.51079226,33835.0,33834.0,4.2421]
[1625590448501,0.75111242,33836.0,33834.0,4.2421]
[1625590449218,0.24057544,33836.0,33834.0,4.2421]
[1625590449460,0.75117537,33836.0,33834.0,4.2421]
[1625590450182,0.24057544,33836.0,33834.0,4.2421]
[1625590455587,1.19003103,33839.0,33834.0,4.2421]
[1625590455707,0.51012462,33839.0,33835.0,0.59013544]
[1625590456189,1.19109332,33840.0,33835.0,0.59013544]
[1625590456488,0.51053056,33840.0,33835.0,0.59013544]
[1625590457629,0.51053056,33840.0,33839.0,0.48115088]
[1625590457873,2.21139383,33840.0,33839.0,0.48115088]
[1625590458111,2.21139383,33840.0,33832.0,0.24057544]
[1625590458232,2.51356383,33840.0,33832.0,0.24057544]
[1625590458472,2.51356383,33840.0,33826.0,1.20941218]
[1625590458473,2.51356383,33840.0,33825.0,1.20997998]
[1625590458474,1.18952801,33834.0,33825.0,1.20997998]
[1625590458712,1.18810842,33830.0,33821.0,1.47891223]
[1625590458833,1.48487842,33830.0,33821.0,1.47891223]
[1625590458954,1.48487842,33830.0,33821.0,0.9603]
[1625590458955,1.18716164,33827.0,33821.0,0.9603]
[1625590459193,0.50833598,33823.0,33821.0,0.9603]
[1625590459313,0.78098598,33823.0,33815.0,0.51871311]
[1625590459432,0.78098598,33823.0,33814.0,1.21032849]
[1625590459674,0.24057544,33818.0,33817.0,0.24057544]
[1625590469109,0.24057544,33818.0,33815.0,0.51963033]
[1625590469230,0.24057544,33818.0,33813.0,1.28002426]
[1625590469231,2.44430044,33818.0,33813.0,0.24057544]
[1625590469349,2.44430044,33818.0,33811.0,1.21280332]
[1625590469590,2.44430044,33818.0,33808.0,1.21280333]
[1625590469591,2.44430044,33818.0,33809.0,0.5198047]
[1625590469593,0.50815635,33813.0,33809.0,0.5198047]
[1625590469710,0.83983635,33813.0,33809.0,0.5198047]
[1625590469832,0.48115088,33810.0,33808.0,0.51981319]
[1625590470671,0.48115088,33810.0,33807.0,1.45357738]
[1625590471032,0.48115088,33810.0,33807.0,0.76049312]
[1625590471275,1.66795437,33810.0,33807.0,0.24057544]
[1625590471573,0.50871218,33809.0,33807.0,0.24057544]
[1625590471813,1.15930009,33810.0,33807.0,0.24057544]
[1625590471814,1.66803688,33810.0,33807.0,0.24057544]
[1625590472595,0.5099762,33809.0,33807.0,0.24057544]
[1625590474277,5.0037,33808.0,33807.0,0.24057544]
[1625590475122,6.19783044,33808.0,33807.0,0.24057544]
[1625590475482,6.19783044,33808.0,33802.0,0.76030723]
[1625590475600,7.22157696,33808.0,33802.0,0.24057544]
[1625590475845,0.48115088,33803.0,33802.0,0.24057544]
[1625590476987,0.48115088,33803.0,33802.0,0.58690626]
[1625590478434,0.48115088,33803.0,33802.0,1.10620047]
[1625590478669,0.48115088,33803.0,33802.0,0.58690626]
[1625590479392,0.48115088,33803.0,33802.0,0.24057544]
[1625590481196,0.48115088,33803.0,33802.0,0.58668955]
[1625590481319,0.48115088,33803.0,33802.0,0.24057544]
[1625590481800,0.48115088,33803.0,33802.0,0.58663305]
[1625590482526,0.48115088,33803.0,33802.0,0.80418305]
[1625590482762,0.48115088,33803.0,33802.0,1.32323166]
[1625590483002,0.48115088,33803.0,33802.0,0.97717405]
[1625590483363,1.33239683,33810.0,33802.0,0.97717405]
[1625590483483,1.33239683,33810.0,33806.0,0.34596506]
[1625590483484,0.48115088,33810.0,33806.0,0.34596506]
[1625590483721,0.48115088,33810.0,33807.0,0.34596232]
[1625590483961,0.48115088,33810.0,33809.0,0.48115088]
[1625590484082,0.48115088,33810.0,33809.0,0.72120088]
[1625590485707,0.82220036,33810.0,33809.0,0.72120088]
[1625590485825,0.82220036,33810.0,33809.0,0.24057544]
[1625590485946,1.33368133,33810.0,33803.0,0.3459749]
[1625590486068,3.56,33805.0,33803.0,0.3459749]
[1625590486548,3.56,33805.0,33802.0,1.34605177]
[1625590486727,3.56,33805.0,33803.0,0.34593367]
[1625590487207,3.56,33805.0,33802.0,1.00011322]
[1625590487208,3.56,33805.0,33802.0,1.34602795]
[1625590487328,3.87137,33805.0,33802.0,1.34602795]